Workbook

Sheet Introduction
A1: DUAL SPACE ARGUMENTS USING POLYNOMIAL ROOTS IN THE
A2: COMPLEX PLANE: A NOVEL APPROACH TO DERIVING KEY
A3: STATISTICAL RESULTS

Sheet t- and Z-Distributions
A3: df of Student-t | B3: =C3/10 -> 30 | C3: 300 | E3: LB | F3: -10
A4: σ of Student-t | B4: =SQRT(B3/(B3-2)) -> 1.035098339 | E4: #Steps | F4: 1000 | G4: CHECKSUM | H4: CHECKSUM | I4: CHECKSUM
E5: Step size | F5: =-2*F3/F4 -> 0.02 | G5: =SUM(G8:G1007)*$F$5 -> 1 | H5: =SUM(H8:H1007)*$F$5 -> 1 | I5: =SUM(I8:I1007)*$F$5 -> 1
E6: Bins | F6: x | G6: ="Student-t ("&TEXT(B3,"0.0")&" d.f.)" -> Student-t (30.0 d.f.) | H6: Standard Normal N(0,1) | I6: ="Normal N(0,"&TEXT(B4,"0.000")&"^2)" -> Normal N(0,1.035^2)
E7: =F3 -> -10 | F7: N/A | G7: N/A | H7: N/A | I7: N/A
E8: =E7+$F$5 -> -9.98 | F8: =(E7+E8)/2 -> -9.99 | G8: =(_xlfn.GAMMA(($B$3+1)/2)/(SQRT(PI()*$B$3)*_xlfn.GAMMA($B$3/2)))*(1+(F8^2)/$B$3)^(-($B$3+1)/2) -> 5.456424412e-11 | H8: =(1/SQRT(2*PI()))*EXP(-(1/2)*(F8)^2) -> 8.503421447e-23 | I8: =(1/(SQRT(2*PI())*$B$4))*EXP(-(1/2)*(F8/$B$4)^2) -> 2.287528516e-21
E9: =E8+$F$5 -> -9.96 | F9: =(E8+E9)/2 -> -9.97 | G9: =(_xlfn.GAMMA(($B$3+1)/2)/(SQRT(PI()*$B$3)*_xlfn.GAMMA($B$3/2)))*(1+(F9^2)/$B$3)^(-($B$3+1)/2) -> 5.723253208e-11 | H9: =(1/SQRT(2*PI()))*EXP(-(1/2)*(F9)^2) -> 1.03819488e-22 | I9: =(1/(SQRT(2*PI())*$B$4))*EXP(-(1/2)*(F9/$B$4)^2) -> 2.755958561e-21
E10: -9.94 | F10: -9.95 | G10: 6.003438936e-11 | H10: 1.267040052e-22 | I10: 3.319072304e-21
E11: -9.92 | F11: -9.93 | G11: 6.297665131e-11 | H11: 1.545710249e-22 | I11: 3.995752748e-21
E12: -9.9 | F12: -9.91 | G12: 6.606651044e-11 | H12: 1.884916481e-22 | I12: 4.808596806e-21
E13: -9.88 | F13: -9.89 | G13: 6.93115354e-11 | H13: 2.297642306e-22 | I13: 5.784635306e-21
E14: -9.86 | F14: -9.87 | G14: 7.271969107e-11 | H14: 2.799619493e-22 | I14: 6.95619051e-21
E15: -9.84 | F15: -9.85 | G15: 7.62993597e-11 | H15: 3.409901866e-22 | I15: 8.361897017e-21
E16: -9.82 | F16: -9.83 | G16: 8.005936324e-11 | H16: 4.151557283e-22 | I16: 1.004791668e-20
E17: -9.8 | F17: -9.81 | G17: 8.400898677e-11 | H17: 5.05250173e-22 | I17: 1.206938383e-20
E18: -9.78 | F18: -9.79 | G18: 8.815800339e-11 | H18: 6.146504294e-22 | I18: 1.449212382e-20
E19: -9.76 | F19: -9.77 | G19: 9.251670028e-11 | H19: 7.47439749e-22 | I19: 1.739469574e-20
E20: -9.74 | F20: -9.75 | G20: 9.709590632e-11 | H20: 9.085534312e-22 | I20: 2.087081943e-20
E21: -9.72 | F21: -9.73 | G21: 1.019070211e-10 | H21: 1.103954154e-21 | I21: 2.50322581e-20
E22: -9.7 | F22: -9.71 | G22: 1.069620458e-10 | H22: 1.340842865e-21 | I22: 3.001224056e-20
E23: -9.68 | F23: -9.69 | G23: 1.122736151e-10 | H23: 1.627912338e-21 | I23: 3.596952255e-20
E24: -9.66 | F24: -9.67 | G24: 1.178550316e-10 | H24: 1.9756519e-21 | I24: 4.309320453e-20
E25: -9.64 | F25: -9.65 | G25: 1.237203019e-10 | H25: 2.39671349e-21 | I25: 5.160844476e-20
E26: -9.62 | F26: -9.63 | G26: 1.298841743e-10 | H26: 2.906351224e-21 | I26: 6.178323096e-20
E27: -9.6 | F27: -9.61 | G27: 1.363621788e-10 | H27: 3.522948988e-21 | I27: 7.393640392e-20
E28: -9.58 | F28: -9.59 | G28: 1.431706695e-10 | H28: 4.268653422e-21 | I28: 8.84471605e-20
E29: -9.56 | F29: -9.57 | G29: 1.503268692e-10 | H29: 5.170133032e-21 | I29: 1.057663043e-19
E30: -9.54 | F30: -9.55 | G30: 1.578489162e-10 | H30: 6.259488169e-21 | I30: 1.264295603e-19
E31: -9.52 | F31: -9.53 | G31: 1.657559138e-10 | H31: 7.5753414e-21 | I31: 1.510733253e-19
E32: -9.5 | F32: -9.51 | G32: 1.740679832e-10 | H32: 9.164143464e-21 | I32: 1.804532938e-19
E33: -9.48 | F33: -9.49 | G33: 1.828063178e-10 | H33: 1.10817368e-20 | I33: 2.154664725e-19
E34: -9.46 | F34: -9.47 | G34: 1.919932424e-10 | H34: 1.33952266e-20 | I34: 2.571771938e-19
E35: -9.44 | F35: -9.45 | G35: 2.016522738e-10 | H35: 1.618521902e-20 | I35: 3.068478383e-19
E36: -9.42 | F36: -9.43 | G36: 2.118081864e-10 | H36: 1.954849731e-20 | I36: 3.659751069e-19
E37: -9.4 | F37: -9.41 | G37: 2.224870801e-10 | H37: 2.360122033e-20 | I37: 4.363328272e-19
E38: -9.38 | F38: -9.39 | G38: 2.337164528e-10 | H38: 2.84827437e-20 | I38: 5.200224501e-19
E39: -9.36 | F39: -9.37 | G39: 2.455252768e-10 | H39: 3.436018288e-20 | I39: 6.195325966e-19
E40: -9.34 | F40: -9.35 | G40: 2.579440789e-10 | H40: 4.143385995e-20 | I40: 7.378092462e-19
E41: -9.32 | F41: -9.33 | G41: 2.710050256e-10 | H41: 4.994380232e-20 | I41: 8.783384379e-19
E42: -9.3 | F42: -9.31 | G42: 2.847420125e-10 | H42: 6.017749346e-20 | I42: 1.045243673e-18
E43: -9.28 | F43: -9.29 | G43: 2.991907595e-10 | H43: 7.24791127e-20 | I43: 1.243400591e-18
E44: -9.26 | F44: -9.27 | G44: 3.143889101e-10 | H44: 8.726054555e-20 | I44: 1.478571923e-18
E45: -9.24 | F45: -9.25 | G45: 3.30376137e-10 | H45: 1.050144983e-19 | I45: 1.757566248e-18
E46: -9.22 | F46: -9.23 | G46: 3.471942539e-10 | H46: 1.263301123e-19 | I46: 2.088424676e-18
E47: -9.2 | F47: -9.21 | G47: 3.648873325e-10 | H47: 1.519115464e-19 | I47: 2.480640282e-18
E48: -9.18 | F48: -9.19 | G48: 3.835018268e-10 | H48: 1.826000824e-19 | I48: 2.945415926e-18
E49: -9.16 | F49: -9.17 | G49: 4.030867043e-10 | H49: 2.194004107e-19 | I49: 3.49596707e-18
E50: -9.14 | F50: -9.15 | G50: 4.236935844e-10 | H50: 2.635118714e-19 | I50: 4.147877281e-18
E51: -9.12 | F51: -9.13 | G51: 4.453768842e-10 | H51: 3.163655724e-19 | I51: 4.919515442e-18
E52: -9.1 | F52: -9.11 | G52: 4.681939731e-10 | H52: 3.796684681e-19 | I52: 5.832525158e-18
E53: -9.08 | F53: -9.09 | G53: 4.922053356e-10 | H53: 4.554556834e-19 | I53: 6.91239865e-18
E54: -9.06 | F54: -9.07 | G54: 5.174747435e-10 | H54: 5.461525977e-19 | I54: 8.189149434e-18
E55: -9.04 | F55: -9.05 | G55: 5.440694376e-10 | H55: 6.546484799e-19 | I55: 9.698100468e-18
E56: -9.02 | F56: -9.03 | G56: 5.720603196e-10 | H56: 7.84383783e-19 | I56: 1.148080723e-17
E57: -9 | F57: -9.01 | G57: 6.015221548e-10 | H57: 9.394535906e-19 | I57: 1.358613841e-17
E58: -8.98 | F58: -8.99 | G58: 6.325337864e-10 | H58: 1.124730151e-18 | I58: 1.607154052e-17
E59: -8.96 | F59: -8.97 | G59: 6.651783615e-10 | H59: 1.346007954e-18 | I59: 1.900451733e-17
E60: -8.94 | F60: -8.95 | G60: 6.995435702e-10 | H60: 1.610175438e-18 | I60: 2.246435966e-17
E61: -8.92 | F61: -8.93 | G61: 7.357218978e-10 | H61: 1.925418103e-18 | I61: 2.654416736e-17
E62: -8.9 | F62: -8.91 | G62: 7.738108917e-10 | H62: 2.301458703e-18 | I62: 3.135321159e-17
E63: -8.88 | F63: -8.89 | G63: 8.139134429e-10 | H63: 2.749841134e-18 | I63: 3.701969389e-17
E64: -8.86 | F64: -8.87 | G64: 8.561380835e-10 | H64: 3.284265848e-18 | I64: 4.369396703e-17
E65: -8.84 | F65: -8.85 | G65: 9.005993013e-10 | H65: 3.920985953e-18 | I65: 5.155229374e-17
E66: -8.82 | F66: -8.83 | G66: 9.47417872e-10 | H66: 4.6792748e-18 | I66: 6.080123117e-17
E67: -8.8 | F67: -8.81 | G67: 9.967212101e-10 | H67: 5.581977703e-18 | I67: 7.168274322e-17
E68: -8.78 | F68: -8.79 | G68: 1.04864374e-09 | H68: 6.656162656e-18 | I68: 8.448015924e-17
E69: -8.76 | F69: -8.77 | G69: 1.103327287e-09 | H69: 7.933887486e-18 | I69: 9.952511638e-17
E70: -8.74 | F70: -8.75 | G70: 1.160921494e-09 | H70: 9.453103882e-18 | I70: 1.172056446e-16
E71: -8.72 | F71: -8.73 | G71: 1.221584256e-09 | H71: 1.125872226e-17 | I71: 1.379755789e-16
E72: -8.7 | F72: -8.71 | G72: 1.285482184e-09 | H72: 1.340386557e-17 | I72: 1.623655116e-16
E73: =E72+$F$5 -> -8.68 | F73: =(E72+E73)/2 -> -8.69 | G73: =(_xlfn.GAMMA(($B$3+1)/2)/(SQRT(PI()*$B$3)*_xlfn.GAMMA($B$3/2)))*(1+(F73^2)/$B$3)^(-($B$3+1)/2) -> 1.352791093e-09 | H73: =(1/SQRT(2*PI()))*EXP(-(1/2)*(F73)^2) -> 1.595134482e-17 | I73: =(1/(SQRT(2*PI())*$B$4))*EXP(-(1/2)*(F73/$B$4)^2) -> 1.909955326e-16
E74: -8.66 | F74: -8.67 | G74: 1.423696523e-09 | H74: 1.897539501e-17 | I74: 2.24590042e-16
E75: -8.64 | F75: -8.65 | G75: 1.498394278e-09 | H75: 2.256371626e-17 | I75: 2.639949669e-16
E76: -8.62 | F76: -8.63 | G76: 1.577091007e-09 | H76: 2.681987295e-17 | I76: 3.101977627e-16
E77: -8.6 | F77: -8.61 | G77: 1.660004815e-09 | H77: 3.186611249e-17 | I77: 3.643506416e-16
E78: -8.58 | F78: -8.59 | G78: 1.747365907e-09 | H78: 3.784667543e-17 | I78: 4.277975366e-16
E79: -8.56 | F79: -8.57 | G79: 1.839417266e-09 | H79: 4.49316812e-17 | I79: 5.021053902e-16
E80: -8.54 | F80: -8.55 | G80: 1.936415381e-09 | H80: 5.332168736e-17 | I80: 5.891004456e-16
E81: -8.52 | F81: -8.53 | G81: 2.038631002e-09 | H81: 6.32530369e-17 | I81: 6.90910324e-16
E82: -8.5 | F82: -8.51 | G82: 2.146349946e-09 | H82: 7.500412715e-17 | I82: 8.100127905e-16
E83: -8.48 | F83: -8.49 | G83: 2.259873955e-09 | H83: 8.890275578e-17 | I83: 9.492922481e-16
E84: -8.46 | F84: -8.47 | G84: 2.379521586e-09 | H84: 1.053347254e-16 | I84: 1.11210516e-15
E85: -8.44 | F85: -8.45 | G85: 2.505629171e-09 | H85: 1.24753918e-16 | I85: 1.302355775e-15
E86: -8.42 | F86: -8.43 | G86: 2.638551821e-09 | H86: 1.476940849e-16 | I86: 1.524583756e-15
E87: -8.4 | F87: -8.41 | G87: 2.778664486e-09 | H87: 1.747826393e-16 | I87: 1.784065519e-15
E88: -8.38 | F88: -8.39 | G88: 2.926363086e-09 | H88: 2.067567829e-16 | I88: 2.086931404e-15
E89: -8.36 | F89: -8.37 | G89: 3.082065696e-09 | H89: 2.444823555e-16 | I89: 2.440301082e-15
E90: -8.34 | F90: -8.35 | G90: 3.246213808e-09 | H90: 2.889758558e-16 | I90: 2.852439974e-15
E91: -8.32 | F91: -8.33 | G91: 3.419273657e-09 | H91: 3.414301573e-16 | I91: 3.332939873e-15
E92: -8.3 | F92: -8.31 | G92: 3.601737632e-09 | H92: 4.032445254e-16 | I92: 3.892927425e-15
E93: -8.28 | F93: -8.29 | G93: 3.794125761e-09 | H93: 4.760596401e-16 | I93: 4.545304669e-15
E94: -8.26 | F94: -8.27 | G94: 3.996987287e-09 | H94: 5.617984416e-16 | I94: 5.305026457e-15
E95: -8.24 | F95: -8.25 | G95: 4.210902329e-09 | H95: 6.627137456e-16 | I95: 6.189420267e-15
E96: -8.22 | F96: -8.23 | G96: 4.436483646e-09 | H96: 7.814437269e-16 | I96: 7.218554747e-15
E97: -8.2 | F97: -8.21 | G97: 4.674378496e-09 | H97: 9.210765424e-16 | I97: 8.415664236e-15
E98: -8.18 | F98: -8.19 | G98: 4.925270608e-09 | H98: 1.085225568e-15 | I98: 9.807637569e-15
E99: -8.16 | F99: -8.17 | G99: 5.189882261e-09 | H99: 1.27811695e-15 | I99: 1.142558066e-14
E100: -8.14 | F100: -8.15 | G100: 5.468976491e-09 | H100: 1.504691452e-15 | I100: 1.330546375e-14
E101: -8.12 | F101: -8.13 | G101: 5.763359422e-09 | H101: 1.770722865e-15 | I101: 1.548886573e-14
E102: -8.1 | F102: -8.11 | G102: 6.07388273e-09 | H102: 2.082955631e-15 | I102: 1.802382979e-14
E103: -8.08 | F103: -8.09 | G103: 6.401446249e-09 | H103: 2.449264711e-15 | I103: 2.096584656e-14
E104: -8.06 | F104: -8.07 | G104: 6.747000737e-09 | H104: 2.878841228e-15 | I104: 2.437898342e-14
E105: -8.04 | F105: -8.05 | G105: 7.11155079e-09 | H105: 3.382407932e-15 | I105: 2.833718102e-14
E106: -8.02 | F106: -8.03 | G106: 7.496157931e-09 | H106: 3.972469183e-15 | I106: 3.29257412e-14
E107: -8 | F107: -8.01 | G107: 7.901943882e-09 | H107: 4.663600838e-15 | I107: 3.8243034e-14
E108: -7.98 | F108: -7.99 | G108: 8.330094016e-09 | H108: =(1/SQRT(2*PI()))*EXP(-(1/2)*(F108)^2) -> 5.472786281e-15 | I108: =(1/(SQRT(2*PI())*$B$4))*EXP(-(1/2)*(F108/$B$4)^2) -> 4.440245494e-14
E109: -7.96 | F109: -7.97 | G109: 8.781861016e-09 | H109: 6.419805759e-15 | I109: 5.153466867e-14
E110: -7.94 | F110: -7.95 | G110: 9.258568751e-09 | H110: 7.527687289e-15 | I110: 5.979017955e-14
E111: -7.92 | F111: -7.93 | G111: 9.761616362e-09 | H111: 8.823228637e-15 | I111: 6.934227571e-14
E112: -7.9 | F112: -7.91 | G112: 1.02924826e-08 | H112: 1.033760132e-14 | I112: 8.039039946e-14
E113: -7.88 | F113: -7.89 | G113: 1.085273043e-08 | H113: 1.21070492e-14 | I113: 9.316400419e-14
E114: -7.86 | F114: -7.87 | G114: 1.144401183e-08 | H114: 1.417369613e-14 | I114: 1.079269662e-13
E115: -7.84 | F115: -7.85 | G115: 1.206807299e-08 | H115: 1.658647927e-14 | I115: 1.24982629e-13
E116: -7.82 | F116: -7.83 | G116: 1.272675971e-08 | H116: 1.940222716e-14 | I116: 1.446795687e-13
E117: -7.8 | F117: -7.81 | G117: 1.342202315e-08 | H117: 2.268690445e-14 | I117: 1.674181808e-13
E118: -7.78 | F118: -7.79 | G118: 1.415592593e-08 | H118: 2.651704839e-14 | I118: 1.936582019e-13
E119: -7.76 | F119: -7.77 | G119: 1.493064855e-08 | H119: 3.098142594e-14 | I119: 2.239272956e-13
E120: -7.74 | F120: -7.75 | G120: 1.574849624e-08 | H120: 3.618294451e-14 | I120: 2.588308499e-13
E121: -7.72 | F121: -7.73 | G121: 1.661190614e-08 | H121: 4.22408542e-14 | I121: 2.990631513e-13
E122: -7.7 | F122: -7.71 | G122: 1.752345494e-08 | H122: 4.929328484e-14 | I122: 3.454201237e-13
E123: -7.68 | F123: -7.69 | G123: 1.848586697e-08 | H123: 5.750016755e-14 | I123: 3.988138471e-13
E124: -7.66 | F124: -7.67 | G124: 1.950202275e-08 | H124: 6.704659743e-14 | I124: 4.602890949e-13
E125: -7.64 | F125: -7.65 | G125: 2.057496806e-08 | H125: 7.814670252e-14 | I125: 5.310421656e-13
E126: -7.62 | F126: -7.63 | G126: 2.170792346e-08 | H126: 9.104809303e-14 | I126: 6.124423156e-13
E127: -7.6 | F127: -7.61 | G127: 2.290429453e-08 | H127: 1.060369758e-13 | I127: 7.060561446e-13
E128: -7.58 | F128: -7.59 | G128: 2.416768249e-08 | H128: 1.234440308e-13 | I128: 8.136753276e-13
E129: -7.56 | F129: -7.57 | G129: 2.550189566e-08 | H129: 1.436511602e-13 | I129: 9.373481387e-13
E130: -7.54 | F130: -7.55 | G130: 2.691096145e-08 | H130: 1.670992357e-13 | I130: 1.079415273e-12
E131: -7.52 | F131: -7.53 | G131: 2.839913906e-08 | H131: 1.942969894e-13 | I131: 1.242550531e-12
E132: -7.5 | F132: -7.51 | G132: 2.997093301e-08 | H132: 2.2583121e-13 | I132: 1.429807015e-12
E133: -7.48 | F133: -7.49 | G133: 3.16311074e-08 | H133: 2.623784328e-13 | I133: 1.644669546e-12
E134: -7.46 | F134: -7.47 | G134: 3.338470097e-08 | H134: 3.047183361e-13 | I134: 1.891114139e-12
E135: -7.44 | F135: -7.45 | G135: 3.523704311e-08 | H135: 3.537490848e-13 | I135: 2.173675428e-12
E136: -7.42 | F136: -7.43 | G136: 3.719377084e-08 | H136: 4.105048984e-13 | I136: 2.497523099e-12
E137: =E136+$F$5 -> -7.4 | F137: =(E136+E137)/2 -> -7.41 | G137: =(_xlfn.GAMMA(($B$3+1)/2)/(SQRT(PI()*$B$3)*_xlfn.GAMMA($B$3/2)))*(1+(F137^2)/$B$3)^(-($B$3+1)/2) -> 3.926084661e-08 | H137: 4.761761561e-13 | I137: 2.868548484e-12
E138: -7.38 | F138: -7.39 | G138: 4.14445774e-08 | H138: 5.52132394e-13 | I138: 3.293462623e-12
E139: -7.36 | F139: -7.37 | G139: 4.375163469e-08 | H139: 6.399486007e-13 | I139: 3.77990728e-12
E140: -7.34 | F140: -7.35 | G140: 4.61890758e-08 | H140: 7.4143527e-13 | I140: 4.336580555e-12
E141: -7.32 | F141: -7.33 | G141: 4.876436633e-08 | H141: 8.586727316e-13 | I141: 4.97337896e-12
E142: -7.3 | F142: -7.31 | G142: 5.148540406e-08 | H142: 9.940503524e-13 | I142: 5.701558054e-12
E143: -7.28 | F143: -7.29 | G143: 5.436054411e-08 | H143: 1.150311279e-12 | I143: 6.533913973e-12
E144: -7.26 | F144: -7.27 | G144: 5.739862567e-08 | H144: 1.330603479e-12 | I144: 7.484988491e-12
E145: -7.24 | F145: -7.25 | G145: 6.060900031e-08 | H145: 1.538537951e-12 | I145: 8.571300576e-12
E146: -7.22 | F146: -7.23 | G146: 6.400156185e-08 | H146: 1.778255065e-12 | I146: 9.81160773e-12
E147: -7.2 | F147: -7.21 | G147: 6.758677812e-08 | H147: 2.054500151e-12 | I147: 1.122720084e-11
E148: -7.18 | F148: -7.19 | G148: 7.137572447e-08 | H148: 2.372709575e-12 | I148: 1.284223669e-11
E149: -7.16 | F149: -7.17 | G149: 7.538011933e-08 | H149: 2.73910872e-12 | I149: 1.468411279e-11
E150: -7.14 | F150: -7.15 | G150: 7.96123618e-08 | H150: 3.160823461e-12 | I150: 1.678388971e-11
E151: -7.12 | F151: -7.13 | G151: 8.408557148e-08 | H151: 3.646006951e-12 | I151: 1.917676673e-11
E152: -7.1 | F152: -7.11 | G152: 8.881363066e-08 | H152: 4.203983729e-12 | I152: 2.190261743e-11
E153: -7.08 | F153: -7.09 | G153: 9.381122893e-08 | H153: 4.845413477e-12 | I153: 2.500659226e-11
E154: -7.06 | F154: -7.07 | G154: 9.909391046e-08 | H154: 5.582476989e-12 | I154: 2.853979646e-11
E155: -7.04 | F155: -7.05 | G155: 1.046781241e-07 | H155: 6.429087291e-12 | I155: 3.256005229e-11
E156: -7.02 | F156: -7.03 | G156: 1.105812762e-07 | H156: 7.401129197e-12 | I156: 3.71327556e-11
E157: -7 | F157: -7.01 | G157: 1.168217869e-07 | H157: 8.516731008e-12 | I157: 4.233183825e-11
E158: -6.98 | F158: -6.99 | G158: 1.234191494e-07 | H158: 9.796572531e-12 | I158: 4.824084877e-11
E159: -6.96 | F159: -6.97 | G159: 1.303939931e-07 | H159: 1.126423411e-11 | I159: 5.495416534e-11
E160: -6.94 | F160: -6.95 | G160: 1.377681497e-07 | H160: 1.294659194e-11 | I160: 6.25783568e-11
E161: -6.92 | F161: -6.93 | G161: 1.45564724e-07 | H161: 1.487426566e-11 | I161: 7.123370897e-11
E162: -6.9 | F162: -6.91 | G162: 1.538081688e-07 | H162: 1.708212479e-11 | I162: 8.105593568e-11
E163: -6.88 | F163: -6.89 | G163: 1.625243633e-07 | H163: 1.96098616e-11 | I163: 9.219809607e-11
E164: -6.86 | F164: -6.87 | G164: 1.717406973e-07 | H164: 2.250263881e-11 | I164: 1.04832742e-10
E165: -6.84 | F165: -6.85 | G165: 1.814861594e-07 | H165: 2.581182145e-11 | I165: 1.191543225e-10
E166: -6.82 | F166: -6.83 | G166: 1.917914313e-07 | H166: 2.959580365e-11 | I166: 1.353818738e-10
E167: -6.8 | F167: -6.81 | G167: 2.026889863e-07 | H167: 3.392094203e-11 | I167: 1.537620299e-10
E168: -6.78 | F168: -6.79 | G168: 2.142131953e-07 | H168: 3.88626091e-11 | I168: 1.745723869e-10
E169: -6.76 | F169: -6.77 | G169: 2.264004374e-07 | H169: 4.450638147e-11 | I169: 1.981252646e-10
E170: -6.74 | F170: -6.75 | G170: 2.39289218e-07 | H170: 5.094937959e-11 | I170: 2.247719083e-10
E171: -6.72 | F171: -6.73 | G171: 2.529202936e-07 | H171: 5.830177756e-11 | I171: 2.549071804e-10
E172: -6.7 | F172: -6.71 | G172: 2.673368038e-07 | H172: =(1/SQRT(2*PI()))*EXP(-(1/2)*(F172)^2) -> 6.66885039e-11 | I172: =(1/(SQRT(2*PI())*$B$4))*EXP(-(1/2)*(F172/$B$4)^2) -> 2.88974798e-10
E173: -6.68 | F173: -6.69 | G173: 2.82584411e-07 | H173: 7.625115651e-11 | I173: 3.274731762e-10
E174: -6.66 | F174: -6.67 | G174: 2.987114484e-07 | H174: 8.715015781e-11 | I174: 3.709619439e-10
E175: -6.64 | F175: -6.65 | G175: 3.15769077e-07 | H175: 9.956717905e-11 | I175: 4.200692087e-10
E176: -6.62 | F176: -6.63 | G176: 3.338114509e-07 | H176: 1.137078663e-10 | I176: 4.754996505e-10
E177: -6.6 | F177: -6.61 | G177: 3.528958935e-07 | H177: 1.298049037e-10 | I177: 5.380435368e-10
E178: -6.58 | F178: -6.59 | G178: 3.730830829e-07 | H178: 1.481214555e-10 | I178: 6.085867587e-10
E179: -6.56 | F179: -6.57 | G179: 3.944372486e-07 | H179: 1.689550296e-10 | I179: 6.881219994e-10
E180: -6.54 | F180: -6.55 | G180: 4.170263802e-07 | H180: 1.926418148e-10 | I180: 7.777611565e-10
E181: -6.52 | F181: -6.53 | G181: 4.409224475e-07 | H181: 2.195615455e-10 | I181: 8.787491539e-10
E182: -6.5 | F182: -6.51 | G182: 4.66201634e-07 | H182: 2.501429571e-10 | I182: 9.924792911e-10
E183: -6.48 | F183: -6.49 | G183: 4.929445836e-07 | H183: 2.848698994e-10 | I183: 1.120510294e-09
E184: -6.46 | F184: -6.47 | G184: 5.212366623e-07 | H184: 3.242881858e-10 | I184: 1.264585248e-09
E185: -6.44 | F185: -6.45 | G185: 5.51168235e-07 | H185: 3.690132616e-10 | I185: 1.42665261e-09
E186: -6.42 | F186: -6.43 | G186: 5.828349577e-07 | H186: 4.197387873e-10 | I186: 1.608889519e-09
E187: -6.4 | F187: -6.41 | G187: 6.163380882e-07 | H187: 4.772462393e-10 | I187: 1.813727648e-09
E188: -6.38 | F188: -6.39 | G188: 6.517848135e-07 | H188: 5.424156463e-10 | I188: 2.043881851e-09
E189: -6.36 | F189: -6.37 | G189: 6.892885972e-07 | H189: 6.162375872e-10 | I189: 2.302381913e-09
E190: -6.34 | F190: -6.35 | G190: 7.28969547e-07 | H190: 6.998265949e-10 | I190: 2.592607695e-09
E191: -6.32 | F191: -6.33 | G191: 7.709548029e-07 | H191: 7.944361222e-10 | I191: 2.918328054e-09
E192: -6.3 | F192: -6.31 | G192: 8.15378949e-07 | H192: 9.014752452e-10 | I192: 3.28374389e-09
E193: -6.28 | F193: -6.29 | G193: 8.623844487e-07 | H193: 1.022527296e-09 | I193: 3.693535766e-09
E194: -6.26 | F194: -6.27 | G194: 9.121221052e-07 | H194: 1.159370637e-09 | I194: 4.152916539e-09
E195: -6.24 | F195: -6.25 | G195: 9.647515488e-07 | H195: 1.314001818e-09 | I195: 4.667689527e-09
E196: -6.22 | F196: -6.23 | G196: 1.020441752e-06 | H196: 1.488661366e-09 | I196: 5.244312738e-09
E197: -6.2 | F197: -6.21 | G197: 1.079371578e-06 | H197: 1.685862502e-09 | I197: 5.889969786e-09
E198: -6.18 | F198: -6.19 | G198: 1.141730351e-06 | H198: 1.908423109e-09 | I198: 6.612648149e-09
E199: -6.16 | F199: -6.17 | G199: 1.207718475e-06 | H199: 2.159501275e-09 | I199: 7.421225471e-09
E200: -6.14 | F200: -6.15 | G200: 1.277548075e-06 | H200: 2.442634827e-09 | I200: 8.325564722e-09
E201: =E200+$F$5 -> -6.12 | F201: =(E200+E201)/2 -> -6.13 | G201: =(_xlfn.GAMMA(($B$3+1)/2)/(SQRT(PI()*$B$3)*_xlfn.GAMMA($B$3/2)))*(1+(F201^2)/$B$3)^(-($B$3+1)/2) -> 1.35144368e-06 | H201: 2.761785259e-09 | I201: 9.336619057e-09
E202: -6.1 | F202: -6.11 | G202: 1.429642948e-06 | H202: 3.12138653e-09 | I202: 1.046654732e-08
... 805 more rows
